Cogmind - Beta 16 @@@ ROGUE MODE // 2025.11.14 @ 21:06:38 Player: Lazz Result: Destroyed by H-61 Shepherd with Heavy Assault Cannon Performance ------------- Evolutions (4) 2000 Regions Visited (4) 800 Robots Destroyed (9) 45 Value Destroyed (325) 325 Prototype IDs (13) 260 Alien Tech Used (0) 0 Bonus (800) 800 TOTAL SCORE: 4230 Bonus ------- Registered with UFD 300 Met Optimus in HQ 500 Cogmind --------- Core Integrity 0/850 Matter 20/300 Energy 80/100 System Corruption 3% Temperature Cool (2) Movement Flying (40) Location -6/Factory Parts ------- > --- POWER (1) -------- (None) > --- PROPULSION (4) --- Nuclear Pulse Thruster > --- UTILITY (8) ------ Gravity Neutralizer (fused) System Shield System Shield > --- WEAPON (2) ------- (None) > --- INVENTORY (5) ---- Gravmag Array Gravity Neutralizer Relay Coupler [Behemoth] (3) Peak State ------------ > --- POWER ------------ Subdweller Power Source > --- PROPULSION ------- Light Treads Overtuned Treads > --- UTILITY ---------- Small Storage Unit Hardened Medium Armor Plating Hardlight Generator Scrapoid Pod > --- WEAPON ----------- Thermic Laser Plasma Cannon > --- INVENTORY -------- Relay Coupler [Behemoth] Plasma Rifle Heavy Ion Cannon Magnetic Acceleration Cannon [Rating: 36] Favorites ----------- Power Light Ion Engine Engine Light Ion Engine Power Core Fusion Compressor Propulsion Light Treads Treads Light Treads Leg Aluminum Leg Flight Unit Nuclear Pulse Thruster Utility Small Storage Unit Device Improved Terrain Scanner Storage Small Storage Unit Processor Advanced Targeting Computer Hackware System Shield Protection Hardened Medium Armor Plating Weapon Plasma Cannon Energy Gun Thermic Laser Energy Cannon Plasma Cannon Ballistic Gun Light Assault Rifle Ballistic Cannon Flak Cannon Build | -11 -10 -10 -9 -6 ------- Run | Yrd Mat Sub Scr Fac Slots Evolved 8 | . . . . 8 Power . | . . . . . Propulsion 2 | . . . . 2 Utility 6 | . . . . 6 Weapon . | . . . . . Parts Attached 40 | 7 1 4 6 22 Power 4 | 1 . 1 . 2 Engine 3 | 1 . 1 . 1 Core 1 | . . . . 1 Reactor . | . . . . . Propulsion 10 | 2 1 2 2 3 Treads 6 | . . 2 2 2 Leg 3 | 2 1 . . . Wheel . | . . . . . Hover . | . . . . . Flight 1 | . . . . 1 Utility 14 | 2 . . 1 11 Device 7 | 1 . . 1 5 Storage 1 | 1 . . . . Processor 1 | . . . . 1 Hackware 2 | . . . . 2 Protection 3 | . . . . 3 Artifact . | . . . . . Weapon 12 | 2 . 1 3 6 Energy Gun 5 | 1 . 1 2 1 Energy Cannon 2 | . . . 1 1 Ballistic Gun 2 | 1 . . . 1 Ballistic Cannon 3 | . . . . 3 Launcher . | . . . . . Special Weapon . | . . . . . Impact Weapon . | . . . . . Slashing Weapon . | . . . . . Piercing Weapon . | . . . . . Special Melee Weapon . | . . . . . Unidentified Prototypes 1 | . . . . 1 Parts Lost 23 | . . 3 2 18 Power 3 | . . 1 1 1 Propulsion 4 | . . 1 . 3 Utility 8 | . . . 1 7 Weapon 8 | . . 1 . 7 Highest Loss Streak 7 | . . 3 2 7 To Critical Strikes 1 | . . . . 1 Average Backups 5 | 3 4 5 7 3 Power . | . 1 1 1 . Propulsion . | 1 2 1 . . Utility 2 | . . . 3 1 Weapon 2 | . 1 1 2 1 Tool/Special . | . . . . . Unused Backups 5 | . . . 2 3 Power . | . . . . . Propulsion 1 | . . . . 1 Utility 3 | . . . 2 1 Weapon 1 | . . . . 1 Tool/Special . | . . . . . Average Slot Usage (%) 81 | . 91 97 99 43 Engine 10 | . 13 12 13 3 Treads 18 | . . 3 28 8 Leg 3 | . 21 23 . . Device 11 | . 14 14 13 7 Storage 10 | . 14 14 14 3 Protection 1 | . . . . 4 Energy Gun 12 | . 14 16 16 3 Energy Cannon 7 | . . . 11 3 Ballistic Gun 1 | . 14 11 . . Peak Build Rating 36 | 9 9 10 25 36 Average Rating 18 | 6 8 9 17 27 On Entrance 8 | . 9 9 9 17 Avg Prop Armor Cover (%) 7 | . . . . 7 Naked Turns 13 | . . . . 13 Heaviest Build 42 | 11 11 12 20 42 Greatest Support 40 | 20 20 40 40 40 Greatest Overweight (x) 9 | 2 3 1 . 9 Average Overweight (x) . | . . . . . Largest Inventory Capacity 8 | 8 8 8 8 8 Average Capacity 7 | 7 8 8 8 6 Most Carried 8 | 4 4 7 8 7 Average Carried 5 | 3 4 5 7 3 Final Capacity 8 | 8 8 8 8 5 Final Carried 8 | 4 4 4 8 4 Class Distribution -------------------- 95% | Mutant 4% | Hacker-Mutant Dominant Class ---------------- Mutant | -10/Materials Mutant | -10/Subcaves Mutant | -9/Scraptown Mutant | -6/Factory Resources | -11 -10 -10 -9 -6 ----------- Run | Yrd Mat Sub Scr Fac Matter Collected 740 | 287 60 24 72 297 Remotely . | . . . . . Salvage Created 315 | 85 . 22 . 208 Parts 11 | 4 . . . 7 Haulers Intercepted . | . . . . . Recyclers Shooed 1 | . . . . 1 Parts Field Recycled . | . . . . . Retrieved Matter . | . . . . . Parts Self-Destructed 11 | . . 11 . . Prevented . | . . . . . Parts Restored . | . . . . . Kills | -11 -10 -10 -9 -6 ------- Run | Yrd Mat Sub Scr Fac Combat Hostiles Destroyed 5 | . . . . 5 Cannons 5 | . . . . 5 Classes Destroyed 7 | 2 . 1 . 4 Worker 1 | . . . . 1 Tunneler 1 | 1 . . . . Recycler 1 | 1 . . . . Turret 1 | . . 1 . . Grunt 3 | . . . . 3 Sentry 1 | . . . . 1 Programmer 1 | . . . . 1 Best Kill Streak 2 | 1 . 1 . 2 Combat Bots Only 2 | . . . . 2 Max Kills in Single Turn 1 | 1 . 1 . 1 Gunslinging . | . . . . . Exploded . | . . . . . Melee . | . . . . . Uniques/NPCs Destroyed . | . . . . . Combat | -11 -10 -10 -9 -6 -------- Run | Yrd Mat Sub Scr Fac Hostile Shots Fired 332 | . . 42 5 285 Missed 108 | . . 17 . 91 Hits 224 | . . 25 5 194 Melee 3 | . . . 3 . Projectile 221 | . . 25 2 194 AOE 3 | . . 2 . 1 Critical Strikes 12 | . . . . 12 Actively Blocked 1 | . . . . 1 Damage Taken 3599 | . . 295 186 3118 Core 969 | . . 52 35 882 Absorbed by Shields 100 | . . . . 100 Redirected to Shielding 106 | . . . . 106 Core Remaining (%) 82 | 100 . . 65 . Volleys Fired 55 | 17 . 4 1 33 Largest 2 | 2 . 2 2 2 Hottest 165 | 60 . 80 165 165 Shots Fired 95 | 34 . 8 2 51 Gun 59 | 34 . 8 1 16 Cannon 36 | . . . 1 35 Launcher . | . . . . . Special . | . . . . . Kinetic 52 | 17 . 2 . 33 Thermal 41 | 17 . 4 2 18 Explosive . | . . . . . Electromagnetic 2 | . . 2 . . Robot Hit Streak 11 | 6 . 5 . 11 Robot Miss Streak 3 | 2 . 1 2 3 Penetration Max 1 | . . . . 1 Secondary Targets . | . . . . . Shots Hit Robots 72 | 20 . 6 . 46 Core Hits 45 | 4 . 2 . 39 Critical Kills . | . . . . . Critical Parts Destroyed 1 | . . . . 1 Critical Strikes 2 | . . . . 2 Burn 1 | . . . . 1 Destroy 1 | . . . . 1 Melee Attacks . | . . . . . Impact . | . . . . . Slashing . | . . . . . Piercing . | . . . . . Sneak Attacks . | . . . . . Combat Hostiles . | . . . . . Follow-up Attacks . | . . . . . Damage Inflicted 1265 | 176 . 58 . 1031 Guns 410 | 176 . 58 . 176 Cannons 855 | . . . . 855 Explosions . | . . . . . Melee . | . . . . . Ramming . | . . . . . Kinetic 766 | 90 . 15 . 661 Thermal 476 | 86 . 20 . 370 Explosive . | . . . . . Electromagnetic 23 | . . 23 . . Impact . | . . . . . Slashing . | . . . . . Piercing . | . . . . . Highest Corruption 3 | . . . . 3 Average Corruption 1 | . . . . 1 Corruption Purged . | . . . . . Corruption Blocked . | . . . . . Effects 8 | . . . . 8 Message Errors 3 | . . . . 3 Matter Fused 2 | . . . . 2 Parts Rejected 1 | . . . . 1 Parts Fused 1 | . . . . 1 Alerts 1 | . . . . 1 Overload Shots . | . . . . . Overflow Damage . | . . . . . Projectiles . | . . . . . Explosions . | . . . . . Melee . | . . . . . Knockbacks 20 | . . . . 20 Impact . | . . . . . Kinetic 17 | . . . . 17 Secondary 3 | . . . . 3 Self-Inflicted Damage . | . . . . . Shots . | . . . . . Rammed . | . . . . . Targets Rammed . | . . . . . Kicked . | . . . . . Crushed . | . . . . . Highest Temperature 301 | 60 . 4 90 301 Average Temperature 70 | 30 . 3 51 106 Received Heat Transfer 813 | . . 111 . 702 Effects 2 | . . . . 2 Interference 2 | . . . . 2 Siege Activations . | . . . . . Martial Activations . | . . . . . Shielding Activations . | . . . . . Robots Disrupted . | . . . . . Combat Hostiles . | . . . . . Robots Corrupted . | . . . . . Combat Hostiles . | . . . . . Parts Fried . | . . . . . Impact Corruptions . | . . . . . Robots Melted . | . . . . . Combat Hostiles . | . . . . . Parts Melted 2 | . . . . 2 Heat Transferred 1061 | 200 . 50 . 811 Parts Sabotaged . | . . . . . Parts Stolen . | . . . . . Parts Stripped . | . . . . . Power Chain Reactions . | . . . . . Alert | -11 -10 -10 -9 -6 ------- Run | Yrd Mat Sub Scr Fac Maximum Alert Level . | . . . . . Low Security (%) 100 | 100 100 . . 100 Level 1 . | . . . . . Level 2 . | . . . . . Level 3 . | . . . . . Level 4 . | . . . . . Level 5 . | . . . . . High Security . | . . . . . Max Security . | . . . . . Peak Influence 85 | 5 . . . 85 Initial . | . . . . . Average 9 | . . . . 12 Influence Increases 393 | 10 . 65 . 318 Destroy 0b10 Robot/C 120 | . . 20 . 100 Destroy 0b10 Robot/NC 15 | 10 . . . 5 Destroy Leader 40 | . . . . 40 Successful Hack 20 | . . . . 20 Destroy Structure 3 | . . . . 3 Partial Spotted 15 | . . . . 15 Lose Combat Pursuer 180 | . . 45 . 135 Influence Decreases 334 | 10 . 35 30 259 Entered New Map 30 | . . . 30 . Time Decay 171 | 10 . 20 . 141 Lost Part 133 | . . 15 . 118 Squads Dispatched 13 | . 2 . . 11 Investigation 5 | . . . . 5 Extermination 2 | . . . . 2 Reinforcement 3 | . 2 . . 1 Assault . | . . . . . Garrison 3 | . . . . 3 Intercept . | . . . . . Searches Triggered . | . . . . . Construction Impeded . | . . . . . Haulers Reinforced . | . . . . . Active Scanning Responses . | . . . . . Cargo Convoy Interrupts . | . . . . . Stealth | -11 -10 -10 -9 -6 --------- Run | Yrd Mat Sub Scr Fac Distress Signals . | . . . . . Communications Jammed . | . . . . . Distress Signals . | . . . . . Times Spotted 37 | . . 10 3 24 Peak Tracking Total 8 | . . 8 1 8 Tactical Retreats 8 | . . 2 . 6 Traps | -11 -10 -10 -9 -6 ------- Run | Yrd Mat Sub Scr Fac Traps Triggered 2 | . 2 . . . Indirectly . | . . . . . Trap Hack Attempts . | . . . . . Triggered . | . . . . . Disarmed . | . . . . . Reprogrammed . | . . . . . Reused . | . . . . . Traps Extracted . | . . . . . Installed . | . . . . . Triggered . | . . . . . Machines | -11 -10 -10 -9 -6 ---------- Run | Yrd Mat Sub Scr Fac Machines Disabled . | . . . . . Max in Single Turn . | . . . . . Machines Repaired . | . . . . . Machines Dismantled . | . . . . . Machines Sabotaged . | . . . . . Overloaded Fab Kills . | . . . . . Hacking | -11 -10 -10 -9 -6 --------- Run | Yrd Mat Sub Scr Fac Machines Accessed 11 | . . . 4 7 Terminals 2 | . . . . 2 Fabricators . | . . . . . Repair Stations . | . . . . . Recycling Units 4 | . . . . 4 Scanalyzers 1 | . . . . 1 Garrison Access . | . . . . . Total Hacks 32 | . . . 12 20 Successful 24 | . . . 12 12 Failed 8 | . . . . 8 Catastrophic 1 | . . . . 1 Database Lockouts . | . . . . . Manual 8 | . . . . 8 Terminals 7 | . . . . 7 Fabricators . | . . . . . Repair Stations . | . . . . . Recycling Units 10 | . . . . 10 Scanalyzers 3 | . . . . 3 Garrison Access . | . . . . . Terminal Hacks 17 | . . . 12 5 Record 11 | . . . 11 . Level Access Points 1 | . . . . 1 Branch Access Points 1 | . . . . 1 Alert Level 1 | . . . . 1 Locate Traps 1 | . . . . 1 Zone Layout 1 | . . . . 1 Proto ID Catalog 1 | . . . 1 . Fabricator Hacks . | . . . . . Repair Station Hacks . | . . . . . Recycling Unit Hacks 2 | . . . . 2 Retrieve Components 2 | . . . . 2 Scanalyzer 2 | . . . . 2 Insert Component 1 | . . . . 1 Retrieve Study 1 | . . . . 1 Garrison Access Hacks . | . . . . . Unauthorized Hacks 3 | . . . . 3 Terminals . | . . . . . Fabricators . | . . . . . Repair Stations . | . . . . . Recycling Units 3 | . . . . 3 Fedlink 3 | . . . . 3 Scanalyzers . | . . . . . Garrison Access . | . . . . . Data Cores Recovered . | . . . . . Used . | . . . . . Hacking Detections 5 | . . . . 5 Full Trace Events 2 | . . . . 2 Feedback Events 2 | . . . . 2 Corruption 2 | . . . . 2 Feedback Blocked . | . . . . . Robot Schematics Acquired . | . . . . . Robots Built . | . . . . . Authchips . | . . . . . Time . | . . . . . Total Robot Build Rating . | . . . . . Part Schematics Acquired . | . . . . . Parts Built . | . . . . . Authchips . | . . . . . Time . | . . . . . Total Part Build Rating . | . . . . . Part Studies Acquired 1 | . . . . 1 Parts Repaired . | . . . . . Time . | . . . . . Parts Recycled . | . . . . . Recycled Matter . | . . . . . Retrieved Matter . | . . . . . Retrieved Components 3 | . . . . 3 Parts Scanalyzed . | . . . . . Part Schematics Acquired . | . . . . . Parts Damaged . | . . . . . Bothacking | -11 -10 -10 -9 -6 ------------ Run | Yrd Mat Sub Scr Fac Used RIF Installer . | . . . . . Robots Hacked . | . . . . . Non-combat . | . . . . . Combat . | . . . . . Robot Hacks Applied . | . . . . . Relay Couplers Released . | . . . . . Fabnet Peak Effective % . | . . . . . Robots Rewired . | . . . . . Allies Hacked . | . . . . . Hacks Repelled . | . . . . . Allies | -11 -10 -10 -9 -6 -------- Run | Yrd Mat Sub Scr Fac Total Allies . | . . . . . Largest Group . | . . . . . Highest-Rated Group . | . . . . . Highest-Rated Ally . | . . . . . Total Orders . | . . . . . Ally Attacks . | . . . . . Total Damage . | . . . . . Kills . | . . . . . Allies Corrupted . | . . . . . Allies Melted 1 | . . . 1 . Intel | -11 -10 -10 -9 -6 ------- Run | Yrd Mat Sub Scr Fac Active Infowar (turns) 1890 | 60 129 254 1447 . Sensors 427 | . . . 427 . Terrain 1463 | 60 129 254 1020 . Robot Analysis Total . | . . . . . Derelict Logs Recovered 3 | . . . 3 . Drone Launches . | . . . . . Drone Recoveries . | . . . . . Exploration | -11 -10 -10 -9 -6 ------------- Run | Yrd Mat Sub Scr Fac Turns Passed 2882 | 146 129 254 1491 862 Spaces Moved 1960 | 70 63 167 919 741 Core 159 | 17 7 . . 135 Treads 1194 | . . 13 919 262 Legs 263 | 53 56 154 . . Wheels . | . . . . . Hover . | . . . . . Flight 344 | . . . . 344 Fastest Speed 40 | 50 100 120 150 40 Average Speed 130 | 121 133 124 159 94 Slowest Speed 500 | 150 200 190 160 500 Overloaded Moves . | . . . . . Propulsion Burnouts . | . . . . . Robots Hopped . | . . . . . Potential Cave-ins . | . . . . . Cave-ins Triggered . | . . . . . Exploration Rate (%) 25 | 6 19 10 71 22 Regions Visited 4 Branch Regions 2 Pre-discovered Areas 2 | . . . 1 1 Known Exits Taken . | . . . . . Unknown Exits Taken 4 | 1 1 1 1 . Scrap Searched 4 | . . . 4 . Spaces Dug . | . . . . . Terrain Destroyed 3 | . . . 1 2 Melee . | . . . . . Projectile 1 | . . . 1 . AOE . | . . . . . Terrain Rammed . | . . . . . Walls Destroyed . | . . . . . Machines Disabled . | . . . . . Actions | -11 -10 -10 -9 -6 --------- Run | Yrd Mat Sub Scr Fac Total 2193 | 97 104 206 942 844 Wait 102 | . 36 27 . 39 Move 1956 | 69 62 166 918 741 Hop . | . . . . . Pick Up 18 | 4 . 4 6 4 Fast Attach 31 | 7 6 . 4 14 Attach 14 | . . 4 1 9 Detach 2 | . . . . 2 Swap 3 | . . . 3 . Drop 12 | . . 1 9 2 Fire 55 | 17 . 4 1 33 Melee . | . . . . . Ram . | . . . . . Kick . | . . . . . Crush . | . . . . . Escape Stasis . | . . . . . Rewire . | . . . . . Trap . | . . . . . Miscellaneous . | . . . . . Route ------- -11/Scrapyard -10/Materials (discovered 3 exits: [*Mat] / [*Min] / [*Sub]) -10/Subcaves (discovered 2 exits: [*Rec] / *Scr) -9/Scraptown (discovered 2 exits: *Fac x2) -6/Factory (discovered 6 exits: *Fac x4 / Low x2) History --------- Turn | Location | Event 23 | -11/Scrapyard | Discovered new exit (range 16) 147 | -11/Scrapyard | Entered Materials 148 | -10/Materials | Met a group of wandering Federalists 159 | -10/Materials | Discovered new exit (range 16) 246 | -10/Materials | Discovered new exit (range 7) 257 | -10/Materials | Discovered new exit (range 10) 276 | -10/Materials | Entered Subcaves 277 | -10/Subcaves | Continued accompanying wandering Federalists (2) 307 | -10/Subcaves | Build established: Mutant 476 | -10/Subcaves | Discovered new exit (range 13) 513 | -10/Subcaves | Wandering Federalist uncovered a shortcut to Scraptown 519 | -10/Subcaves | Lost 3 parts (1p1n1w) 527 | -10/Subcaves | Shifting Twisted Machinery released Shrapnel Trap 530 | -10/Subcaves | Entered Scraptown 639 | -9/Scraptown | Heard Great Nut preacher, LISTEN AND RECITE! 919 | -9/Scraptown | Visited TADAMA 975 | -9/Scraptown | Visited CPS Storage 1006 | -9/Scraptown | Visited Red Mages 1072 | -9/Scraptown | Visited Spacefarers 1138 | -9/Scraptown | Scanned Subdweller tech in exchange for log data 1144 | -9/Scraptown | Learned Research interactive machine intel 1146 | -9/Scraptown | Learned location of Warlord (-5) 1167 | -9/Scraptown | Discovered new exit (range 7) 1301 | -9/Scraptown | Visited Cave Peace 1365 | -9/Scraptown | Visited Awakened 1381 | -9/Scraptown | Visited UFD Registry 1431 | -9/Scraptown | Registered with UFD as "Pulsechaser" 1480 | -9/Scraptown | Visited Science Guys 1548 | -9/Scraptown | Visited Infowarlord's Domain 1563 | -9/Scraptown | Found Exp. Sensor Array 1593 | -9/Scraptown | Visited Curators Association 1863 | -9/Scraptown | Met Optimus 1863 | -9/Scraptown | Accepted into 0bPrime 1921 | -9/Scraptown | Visited Scrapoid Pod Storage 1930 | -9/Scraptown | Found Scrapoid Pod 1964 | -9/Scraptown | Visited Scrap Suit Storage 1967 | -9/Scraptown | Civil war broke out across Scraptown 2005 | -9/Scraptown | Discovered new exit (range 5) 2017 | -9/Scraptown | Lost 3 allies 2021 | -9/Scraptown | Entered Factory 2021 | -6/Factory | Evolved 8 slots: Propulsion x2, Utility x6 2520 | -6/Factory | Loaded intel: 8 recycling unit locations 2533 | -6/Factory | Lost 5 parts (1p2u2w) 2542 | -6/Factory | Garrison activated, responded to threat 2586 | -6/Factory | Core integrity fell below 50% 2586 | -6/Factory | Released all parts (2) 2610 | -6/Factory | Lost 7 parts (2n1u4w) 2633 | -6/Factory | Learned location of Protoforge (-2) 2656 | -6/Factory | Identified exit to Lower Caves 2699 | -6/Factory | Identified exit to Factory 2844 | -6/Factory | Core integrity fell below 20% 2883 | -6/Factory | Destroyed by H-61 Shepherd with Heavy Assault Cannon Last Messages --------------- 02846_ G-50 Soldier knocked back. 02850_ Penetrated by Slug. 02851_ G-50 Soldier knocked back. 02853_ Imp. Propulsion Shielding destroyed. 02853_ G-50 Soldier destroyed. 02857_ Penetrated by Slug. 02860_ Slug penetrates Wall. 02862_ Flak Cannon destroyed. 02862_ Acquired 16 matter. 02863_ Penetrated by Slug. 02865_ M-13 Machinist repairs H-66 Slayer. 02868_ Door malfunctions. 02868_ Penetrated by Slug. 02868_ Imp. Light Armor Plating destroyed. 02868_ Penetrated by Slug. 02870_ ALERT: Suspicious intruders detected, dispatching Specialist reinforcements to area. 02871_ System corrupted: Matter fused (-5). 02880_ Lgt. Treads+ destroyed. 02881_ Dropped Lgt. Treads+. Map ----- +----------------------------------------------------+ | ?# # #?##############] | | ?# """ # #??????????????# | | ?# "Y" # #??????????????# #### " " ##/#### | | ?# # #??????????????# #??# " " ## | | ?# # ####????????##?# #??#""G""## | | ?# """ + #????????# ## #??######## """ | | ?# """ # #????????# # #?????????#! """ | | ?# """ # #?????????# +?????????# """ | | ?# + #?????????# # #?????????# | | ?##########"## #?????????### #?????????# | | ?# ! # ############# #?????????# """ | | ?# # #?????????# """ | | ?# !!! # #?????????# """ | | ?# """ !!! # #?????????# """ | | ?#^""" !!! # #?????????# | | ???""" # #?????????###### | | ??? ##### ########??????????????? | | ??################/## #?????????????????????? | | ??????????# g # #?????????????????????? | | ??????????# h# #?????????????????????? | | ??????????# # #?????????????????????? | | ??????????# """""" p +?????????????????????? | | ??????????# """""" # #?????????????????????? | | ??????????# """""" # =% #?????????????????????? | | ??????????# """""" # #?????????????????????? | | ?????????????? # @ #?????????????????????? | | ??????????????####### #?????????????????????? | | ????????????????????# #?????????????????????? | | ????????????????????# /?????????????????????? | | ????????????????????#x # ????????????????????? | | ????????????????????# # ???????????????????? | | ????????????????????# #? ??????????????????? | | ???????????????????? H #? ?????????????????? | | ??????????????????? x #?? ????????????????? | | ??????????????????? < #??? ???????????????? | | ??????????????????# #??? ???????????????? | | ??????????????????# #????##???????????????? | | ??????????????????####+####?????????????????????? | | ????????????????????????????????????????????????? | | ????????????????????????????????????????????????? | | ????????????????????????????????????????????????? | | ????????????????????????????????????????????????? | | ????????????????????????????????????????????????? | | ????????????????????????????????????????????????? | | ????????????????????????????????????????????????? | | ????????????????????????????????????????????????? | | ????????????????????????????????????????????????? | | ????????????????????????????????????????????????? | | ????????????????????????????????????????????????? | | ????????????????????????????????????????????????? | +----------------------------------------------------+ Best States ------------- Heat Dissipation 37 Energy Generation 15 Energy Capacity 200 Matter Stores 300 Matter Capacity 300 Sight Range 16 Robot Scan Range 20 Terrain Scan Range 16 Terrain Scan Density 10 Additional Mass Support 12 Armor Coverage 225 Propulsion Shielding 66 Evasion (%) 70 Targeting Accuracy 8 Recoil Reduction 2 Defensive Hacking 20 Item Schematics ----------------- None Robot Schematics ------------------ None Fabricated ------------ Nothing Repaired ---------- Nothing Studied --------- Lgt. Treads | -6/Factory | Hacked Alien Tech Used ----------------- None Achievements -------------- None Challenges ------------ None Game ------ Seed BackupDeuteriumStorage Manual? 0 Play Time 00:30:53 Cumulative 76.3 hours Start 2025.11.14 @ 20:35:23 End 2025.11.14 @ 21:06:38 Sessions 1 Manual Loads 0 Difficulty Rogue Special Mode None Game No. 101 Rogue 101 Adventurer 0 Explorer 0 Win Type - Total 1 Types 1/0/0/0/0/0/0/0/0/0 Lore% 46 Gallery% 48 Achievement% 35 Wizard Run 0 Options --------- Layout 2 ASCII 0 Keyboard 0 Movement Mouse Keybinds 0 Fullscreen 1 Font 24/Smallcaps Map View 50x44 Zoom Use 0% Tactical HUD 1 Map Filters NONE Filters NONE Steam 1 RUN: 0d7a69e4-1da6-4404-a81a-c5dfa455004e